[Event "Championnat d'Europe de Blitz"]
[Date "2024.12.09"]
[White "Fedoseev, Vladimir"]
[Black "Baidetskyi, Valentin"]
[WhiteElo "2709"]
[BlackElo "2519"]
[Round "13.4"]
[Result "1/2-1/2"]
[TimeControl "180+2"]

1. d4 {[%emt 00:12:47] [%clk 00:03:03]} Nf6 {[%clk 00:03:03]} 2. c4 {[%clk
00:03:04]} e6 {[%emt 00:00:01] [%clk 00:03:04]} 3. Nf3 {[%clk 00:03:05]} Bb4+
{[%clk 00:03:06]} 4. Nbd2 {[%emt 00:00:02] [%clk 00:03:05]} Be7 {[%emt 00:00:02]
[%clk 00:03:06]} 5. e4 {[%emt 00:00:03] [%clk 00:03:04]} d6 {[%emt 00:00:07]
[%clk 00:03:01]} 6. b3 {[%emt 00:00:24] [%clk 00:02:42]} e5 {[%emt 00:00:23]
[%clk 00:02:40]} 7. Bb2 {[%emt 00:00:01] [%clk 00:02:43]} exd4 {[%emt 00:00:08]
[%clk 00:02:35]} 8. Nxd4 {[%emt 00:00:02] [%clk 00:02:43]} Nc6 {[%emt 00:00:05]
[%clk 00:02:32]} 9. Be2 {[%emt 00:00:19] [%clk 00:02:26]} Nxd4 {[%emt 00:00:04]
[%clk 00:02:30]} 10. Bxd4 {[%emt 00:00:01] [%clk 00:02:27]} O-O {[%emt 00:00:02]
[%clk 00:02:30]} 11. O-O {[%emt 00:00:02] [%clk 00:02:27]} Bd7 {[%emt 00:00:08]
[%clk 00:02:25]} 12. f4 {[%emt 00:00:05] [%clk 00:02:24]} Bc6 {[%emt 00:00:13]
[%clk 00:02:14]} 13. Qc2 {[%emt 00:00:07] [%clk 00:02:19]} a5 {[%emt 00:00:05]
[%clk 00:02:11]} 14. Rad1 {[%emt 00:00:03] [%clk 00:02:17]} Re8 {[%emt 00:00:22]
[%clk 00:01:51]} 15. Rfe1 {[%emt 00:00:09] [%clk 00:02:10]} Nd7 {[%emt 00:00:17]
[%clk 00:01:36]} 16. Bd3 {[%emt 00:00:09] [%clk 00:02:03]} Bf6 {[%emt 00:00:14]
[%clk 00:01:25]} 17. Bf2 {[%emt 00:00:01] [%clk 00:02:03]} g6 {[%emt 00:00:08]
[%clk 00:01:19]} 18. Nf3 {[%emt 00:00:04] [%clk 00:02:00]} Nc5 {[%emt 00:00:30]
[%clk 00:00:52]} 19. Bxc5 {[%emt 00:00:04] [%clk 00:01:58]} dxc5 {[%emt
00:00:01] [%clk 00:00:53]} 20. Qf2 {[%emt 00:00:37] [%clk 00:01:23]} Bc3 {[%emt
00:00:17] [%clk 00:00:38]} 21. Rf1 {[%clk 00:01:24]} Qe7 {[%emt 00:00:11] [%clk
00:00:29]} 22. Qc2 {[%emt 00:00:02] [%clk 00:01:25]} Bd4+ {[%emt 00:00:07] [%clk
00:00:23]} 23. Nxd4 {[%emt 00:00:02] [%clk 00:01:24]} cxd4 {[%emt 00:00:02]
[%clk 00:00:24]} 24. Rde1 {[%emt 00:00:03] [%clk 00:01:23]} a4 {[%emt 00:00:02]
[%clk 00:00:25]} 25. c5 {[%emt 00:00:11] [%clk 00:01:13]} axb3 {[%emt 00:00:02]
[%clk 00:00:25]} 26. axb3 {[%clk 00:01:14]} Ra5 {[%emt 00:00:04] [%clk
00:00:23]} 27. b4 {[%emt 00:00:03] [%clk 00:01:13]} Ra3 {[%emt 00:00:01] [%clk
00:00:24]} 28. f5 {[%emt 00:00:10] [%clk 00:01:05]} Rc3 {[%emt 00:00:04] [%clk
00:00:23]} 29. Qd2 {[%clk 00:01:06]} Qh4 {[%emt 00:00:13] [%clk 00:00:11]} 30.
g3 {[%emt 00:00:21] [%clk 00:00:47]} Qg4 {[%emt 00:00:04] [%clk 00:00:10]} 31.
Rf4 {[%emt 00:00:18] [%clk 00:00:31]} Qg5 {[%emt 00:00:03] [%clk 00:00:09]} 32.
e5 {[%clk 00:00:32]} Ra3 {[%emt 00:00:08] [%clk 00:00:03]} 33. fxg6 {[%emt
00:00:08] [%clk 00:00:26]} hxg6 {[%emt 00:00:02] [%clk 00:00:04]} 34. Bc4 {[%emt
00:00:03] [%clk 00:00:25]} Rxe5 {[%emt 00:00:02] [%clk 00:00:03]} 35. Rxe5
{[%emt 00:00:11] [%clk 00:00:16]} Qxe5 {[%clk 00:00:05]} 36. Rxf7 {[%emt
00:00:10] [%clk 00:00:07]} Qe3+ {[%emt 00:00:03] [%clk 00:00:04]} 37. Qxe3
{[%emt 00:00:02] [%clk 00:00:08]} Rxe3 {[%emt 00:00:02] [%clk 00:00:04]} 38.
Rxc7+ {[%emt 00:00:02] [%clk 00:00:08]} Kf8 {[%emt 00:00:01] [%clk 00:00:05]}
39. b5 {[%clk 00:00:09]} Be4 {[%emt 00:00:01] [%clk 00:00:06]} 40. c6 {[%emt
00:00:01] [%clk 00:00:10]} bxc6 {[%clk 00:00:07]} 41. b6 {[%emt 00:00:01] [%clk
00:00:11]} c5 {[%emt 00:00:04] [%clk 00:00:04]} 42. b7 {[%clk 00:00:12]} Bxb7
{[%emt 00:00:01] [%clk 00:00:05]} 43. Rxb7 {[%emt 00:00:02] [%clk 00:00:13]} Rc3
{[%clk 00:00:06]} 44. Bd5 {[%emt 00:00:04] [%clk 00:00:12]} d3 {[%emt 00:00:01]
[%clk 00:00:07]} 45. Kf2 {[%emt 00:00:09] [%clk 00:00:05]} d2 {[%emt 00:00:02]
[%clk 00:00:06]} 46. Ke2 {[%emt 00:00:03] [%clk 00:00:04]} d1=Q+ 47. Kxd1 {[%clk
00:00:05]} Rd3+ {[%clk 00:00:08]} 48. Kc2 {[%emt 00:00:02] [%clk 00:00:06]} Rxd5
{[%clk 00:00:09]} 49. Kc3 {[%clk 00:00:07]} Rh5 {[%emt 00:00:04] [%clk
00:00:08]} 50. Rb2 {[%emt 00:00:01] [%clk 00:00:08]} Ke7 {[%emt 00:00:02] [%clk
00:00:07]} 51. Kc4 {[%clk 00:00:09]} Kf6 {[%emt 00:00:03] [%clk 00:00:07]} 52.
Rf2+ {[%emt 00:00:01] [%clk 00:00:10]} Kg7 {[%emt 00:00:01] [%clk 00:00:08]} 53.
Re2 {[%emt 00:00:05] [%clk 00:00:07]} Kf7 {[%emt 00:00:04] [%clk 00:00:06]} 54.
Rd2 {[%emt 00:00:02] [%clk 00:00:07]} Kg7 {[%clk 00:00:07]} 55. h4 {[%emt
00:00:01] [%clk 00:00:07]} g5 {[%emt 00:00:03] [%clk 00:00:07]} 56. Rd5 {[%emt
00:00:03] [%clk 00:00:07]} Kg6 {[%clk 00:00:08]} 57. Rd6+ {[%emt 00:00:03] [%clk
00:00:06]} Kg7 {[%clk 00:00:09]} 58. Rd5 {[%emt 00:00:02] [%clk 00:00:06]} Kg6
{[%emt 00:00:01] [%clk 00:00:11]} 59. Rd6+ {[%emt 00:00:02] [%clk 00:00:05]} Kg7
{[%emt 00:00:01] [%clk 00:00:12]} 60. Rd5 {[%emt 00:00:01] [%clk 00:00:06]} Kg6
{[%clk 00:00:14]} 61. Rxg5+ {[%emt 00:00:01] [%clk 00:00:03]} Kf6 {[%emt
00:00:04]} 1/2-1/2

[Site "Europe Echecs"]

[Event "Championnat d'Europe de Blitz"]
[Date "2024.12.09"]
[White "Peyrer, Konstantin"]
[Black "Safarli, Eltaj"]
[WhiteElo "2440"]
[BlackElo "2610"]
[Round "13.5"]
[Result "0-1"]
[TimeControl "180+2"]

1. Nf3 {[%clk 00:03:03]} Nf6 {[%emt 00:00:02] [%clk 00:03:03]} 2. c4 {[%emt
00:00:01] [%clk 00:03:04]} c5 {[%emt 00:00:03] [%clk 00:03:01]} 3. g3 {[%emt
00:00:02] [%clk 00:03:04]} g6 {[%emt 00:00:04] [%clk 00:03:00]} 4. Bg2 {[%emt
00:00:01] [%clk 00:03:05]} Bg7 {[%clk 00:03:01]} 5. O-O {[%emt 00:00:02] [%clk
00:03:05]} O-O {[%emt 00:00:01] [%clk 00:03:01]} 6. Nc3 {[%emt 00:00:02] [%clk
00:03:06]} Nc6 {[%emt 00:00:02] [%clk 00:03:01]} 7. d4 {[%clk 00:03:07]} cxd4
{[%emt 00:00:02] [%clk 00:03:02]} 8. Nxd4 {[%clk 00:03:08]} Qa5 {[%emt 00:00:02]
[%clk 00:03:02]} 9. Nb3 {[%emt 00:00:12] [%clk 00:02:58]} Qh5 {[%emt 00:00:06]
[%clk 00:02:57]} 10. e4 {[%emt 00:00:01] [%clk 00:02:59]} d6 {[%emt 00:00:08]
[%clk 00:02:52]} 11. Qxh5 {[%emt 00:00:05] [%clk 00:02:55]} Nxh5 {[%emt
00:00:01] [%clk 00:02:53]} 12. Nd5 {[%emt 00:00:06] [%clk 00:02:51]} Bd7 {[%emt
00:00:32] [%clk 00:02:23]} 13. Rb1 {[%emt 00:00:18] [%clk 00:02:36]} Rac8 {[%emt
00:00:11] [%clk 00:02:14]} 14. Bd2 {[%emt 00:00:13] [%clk 00:02:24]} e6 {[%emt
00:00:06] [%clk 00:02:10]} 15. Ne3 {[%clk 00:02:25]} Ne5 {[%emt 00:00:24] [%clk
00:01:49]} 16. Rfc1 {[%emt 00:00:08] [%clk 00:02:18]} Nd3 {[%emt 00:00:02] [%clk
00:01:49]} 17. Rc2 {[%clk 00:02:19]} Ba4 {[%emt 00:00:02] [%clk 00:01:50]} 18.
Bc3 {[%emt 00:00:09] [%clk 00:02:11]} Nc5 {[%emt 00:00:22] [%clk 00:01:30]} 19.
Bxg7 {[%emt 00:00:04] [%clk 00:02:10]} Kxg7 {[%emt 00:00:01] [%clk 00:01:31]}
20. Rc3 {[%emt 00:00:02] [%clk 00:02:10]} Bxb3 {[%emt 00:00:02] [%clk 00:01:31]}
21. axb3 {[%emt 00:00:01] [%clk 00:02:11]} a5 {[%clk 00:01:32]} 22. Nc2 {[%emt
00:00:14] [%clk 00:01:59]} Nf6 {[%emt 00:00:02] [%clk 00:01:32]} 23. Re1 {[%emt
00:00:02] [%clk 00:01:58]} Rfd8 {[%emt 00:00:15] [%clk 00:01:19]} 24. Nd4 {[%emt
00:00:08] [%clk 00:01:53]} Ne8 {[%emt 00:00:18] [%clk 00:01:03]} 25. Ra1 {[%emt
00:00:09] [%clk 00:01:46]} b6 {[%emt 00:00:02] [%clk 00:01:03]} 26. Rd1 {[%emt
00:00:01] [%clk 00:01:45]} Kf8 {[%emt 00:00:08] [%clk 00:00:58]} 27. Nb5 {[%emt
00:00:09] [%clk 00:01:39]} Ke7 {[%emt 00:00:03] [%clk 00:00:57]} 28. f4 {[%emt
00:00:01] [%clk 00:01:39]} Nc7 {[%emt 00:00:02] [%clk 00:00:58]} 29. Na7 {[%emt
00:00:01] [%clk 00:01:40]} N7a6 {[%emt 00:00:04] [%clk 00:00:56]} 30. Nxc8+
{[%emt 00:00:03] [%clk 00:01:39]} Rxc8 {[%emt 00:00:01] [%clk 00:00:57]} 31. Kf2
{[%emt 00:00:09] [%clk 00:01:31]} Nb4 {[%clk 00:00:59]} 32. Ke3 {[%emt 00:00:01]
[%clk 00:01:32]} Na2 {[%emt 00:00:05] [%clk 00:00:55]} 33. Rc2 {[%emt 00:00:04]
[%clk 00:01:30]} Nxb3 {[%emt 00:00:02] [%clk 00:00:56]} 34. Bf1 {[%emt 00:00:13]
[%clk 00:01:18]} a4 {[%emt 00:00:08] [%clk 00:00:51]} 35. Rf2 {[%emt 00:00:06]
[%clk 00:01:14]} Nb4 {[%emt 00:00:04] [%clk 00:00:48]} 36. f5 {[%emt 00:00:02]
[%clk 00:01:15]} Rc5 {[%emt 00:00:22] [%clk 00:00:28]} 37. fxe6 {[%emt 00:00:13]
[%clk 00:01:04]} fxe6 {[%clk 00:00:29]} 38. Bh3 {[%emt 00:00:02] [%clk
00:01:05]} Nc6 {[%emt 00:00:02] [%clk 00:00:29]} 39. Bf1 {[%emt 00:00:04] [%clk
00:01:02]} Ne5 {[%emt 00:00:02] [%clk 00:00:30]} 40. Be2 {[%emt 00:00:01] [%clk
00:01:03]} Na5 {[%clk 00:00:30]} 41. Rdf1 {[%emt 00:00:05] [%clk 00:01:00]}
Naxc4+ {[%emt 00:00:04] [%clk 00:00:29]} 42. Bxc4 {[%emt 00:00:02] [%clk
00:01:00]} Rxc4 {[%emt 00:00:03] [%clk 00:00:28]} 43. h3 {[%emt 00:00:03] [%clk
00:00:58]} Rb4 {[%clk 00:00:29]} 44. Re2 {[%emt 00:00:17] [%clk 00:00:43]} Rb3+
{[%emt 00:00:02] [%clk 00:00:30]} 45. Kf2 {[%clk 00:00:44]} Nd3+ {[%emt
00:00:03] [%clk 00:00:29]} 46. Kg2 {[%emt 00:00:02] [%clk 00:00:45]} Rxb2 {[%emt
00:00:02] [%clk 00:00:28]} 47. Rxb2 {[%emt 00:00:10] [%clk 00:00:37]} Nxb2
{[%clk 00:00:30]} 48. Kf3 {[%emt 00:00:03] [%clk 00:00:36]} b5 {[%emt 00:00:04]
[%clk 00:00:28]} 49. Ra1 {[%emt 00:00:05] [%clk 00:00:32]} Nc4 {[%emt 00:00:04]
[%clk 00:00:26]} 50. Ke2 {[%clk 00:00:34]} Kd7 {[%emt 00:00:01] [%clk 00:00:27]}
51. Kd3 {[%clk 00:00:35]} Kc6 {[%emt 00:00:01] [%clk 00:00:28]} 52. Rf1 {[%emt
00:00:08] [%clk 00:00:28]} Kc5 {[%emt 00:00:01] [%clk 00:00:30]} 53. Rf7 {[%emt
00:00:02] [%clk 00:00:27]} Ne5+ {[%clk 00:00:31]} 0-1

[Site "Europe Echecs"]

[Event "Championnat d'Europe de Blitz"]
[Date "2024.12.09"]
[White "Fressinet, Laurent"]
[Black "Beerdsen, Thomas"]
[WhiteElo "2588"]
[BlackElo "2502"]
[Round "13.6"]
[Result "1-0"]
[TimeControl "180+2"]

1. Nf3 {[%emt 00:17:34] [%clk 00:03:03]} d5 {[%emt 00:00:02] [%clk 00:03:03]} 2.
g3 {[%emt 00:00:01] [%clk 00:03:04]} Nc6 {[%emt 00:00:01] [%clk 00:03:04]} 3.
Bg2 {[%emt 00:00:07] [%clk 00:02:59]} e5 {[%clk 00:03:05]} 4. d3 {[%emt
00:00:01] [%clk 00:03:00]} Nf6 {[%emt 00:00:04] [%clk 00:03:03]} 5. O-O {[%emt
00:00:02] [%clk 00:03:00]} Be7 {[%emt 00:00:04] [%clk 00:03:01]} 6. Nbd2 {[%emt
00:00:08] [%clk 00:02:55]} e4 {[%emt 00:00:05] [%clk 00:02:58]} 7. Ne1 {[%emt
00:00:27] [%clk 00:02:28]} h5 {[%emt 00:00:13] [%clk 00:02:48]} 8. c4 {[%emt
00:00:04] [%clk 00:02:27]} dxc4 {[%emt 00:00:15] [%clk 00:02:35]} 9. Nxe4 {[%emt
00:00:07] [%clk 00:02:22]} cxd3 {[%emt 00:00:11] [%clk 00:02:26]} 10. Nxd3
{[%emt 00:00:05] [%clk 00:02:18]} h4 {[%emt 00:00:10] [%clk 00:02:19]} 11. Ndc5
{[%emt 00:00:19] [%clk 00:02:01]} hxg3 {[%emt 00:00:08] [%clk 00:02:13]} 12.
Qxd8+ {[%emt 00:00:06] [%clk 00:01:57]} Bxd8 {[%clk 00:02:13]} 13. hxg3 {[%emt
00:00:02] [%clk 00:01:57]} Nd4 {[%emt 00:00:04] [%clk 00:02:11]} 14. Nc3 {[%emt
00:00:11] [%clk 00:01:49]} Be7 {[%emt 00:00:07] [%clk 00:02:06]} 15. Nb3 {[%emt
00:00:11] [%clk 00:01:40]} Ne6 {[%emt 00:00:38] [%clk 00:01:30]} 16. Rd1 {[%emt
00:00:22] [%clk 00:01:20]} c6 {[%emt 00:00:03] [%clk 00:01:29]} 17. Na5 {[%emt
00:00:03] [%clk 00:01:19]} Bc5 {[%emt 00:00:06] [%clk 00:01:24]} 18. Nxc6 {[%emt
00:00:08] [%clk 00:01:13]} O-O {[%emt 00:00:34] [%clk 00:00:53]} 19. Na5 {[%emt
00:00:09] [%clk 00:01:05]} Ng4 {[%emt 00:00:08] [%clk 00:00:47]} 20. Ne4 {[%emt
00:00:03] [%clk 00:01:05]} Bb4 {[%emt 00:00:04] [%clk 00:00:45]} 21. Bd2 {[%emt
00:00:05] [%clk 00:01:01]} Be7 {[%emt 00:00:08] [%clk 00:00:38]} 22. Bc3 {[%emt
00:00:06] [%clk 00:00:57]} Nc7 {[%emt 00:00:22] [%clk 00:00:19]} 23. Nd6 {[%emt
00:00:04] [%clk 00:00:55]} Bxd6 {[%clk 00:00:20]} 24. Rxd6 {[%emt 00:00:02]
[%clk 00:00:56]} Nb5 {[%clk 00:00:21]} 25. Rd2 {[%emt 00:00:10] [%clk 00:00:47]}
Nxc3 {[%emt 00:00:03] [%clk 00:00:20]} 26. bxc3 {[%emt 00:00:01] [%clk
00:00:48]} Rb8 {[%clk 00:00:21]} 27. Rad1 {[%emt 00:00:10] [%clk 00:00:40]} Be6
{[%emt 00:00:11] [%clk 00:00:12]} 28. Nxb7 {[%emt 00:00:05] [%clk 00:00:38]}
Rfc8 {[%emt 00:00:01] [%clk 00:00:13]} 29. Rd8+ {[%emt 00:00:05] [%clk
00:00:35]} Kh7 {[%emt 00:00:01] [%clk 00:00:13]} 30. a3 {[%emt 00:00:06] [%clk
00:00:31]} Nf6 {[%emt 00:00:05] [%clk 00:00:10]} 31. Bf3 {[%emt 00:00:13] [%clk
00:00:20]} Bb3 {[%emt 00:00:04] [%clk 00:00:09]} 32. R1d4 {[%emt 00:00:02] [%clk
00:00:20]} g5 {[%emt 00:00:02] [%clk 00:00:09]} 33. g4 {[%emt 00:00:13] [%clk
00:00:09]} Be6 {[%emt 00:00:01] [%clk 00:00:10]} 34. c4 {[%emt 00:00:05] [%clk
00:00:05]} Kg7 {[%emt 00:00:06] [%clk 00:00:06]} 35. Rxc8 {[%emt 00:00:02] [%clk
00:00:06]} Rxc8 {[%clk 00:00:07]} 36. c5 {[%clk 00:00:07]} Rc7 {[%emt 00:00:02]
[%clk 00:00:08]} 37. c6 {[%clk 00:00:08]} Nh7 {[%emt 00:00:05] [%clk 00:00:05]}
38. Nc5 {[%emt 00:00:02] [%clk 00:00:09]} Nf8 {[%clk 00:00:06]} 39. e3 {[%emt
00:00:04] [%clk 00:00:08]} Bc8 {[%emt 00:00:03] [%clk 00:00:05]} 40. Rd8 {[%emt
00:00:01] [%clk 00:00:09]} Be6 {[%emt 00:00:04]} 41. Rb8 {[%clk 00:00:08]} Bc8
{[%emt 00:00:01] [%clk 00:00:07]} 42. Rb7 {[%emt 00:00:03] [%clk 00:00:07]} Bxb7
{[%emt 00:00:04] [%clk 00:00:05]} 43. cxb7 {[%clk 00:00:09]} Rxc5 {[%emt
00:00:01] [%clk 00:00:06]} 44. b8=Q {[%emt 00:00:03]} Ne6 {[%emt 00:00:02] [%clk
00:00:06]} 45. Qxa7 {[%emt 00:00:02] [%clk 00:00:08]} Rc3 {[%emt 00:00:03] [%clk
00:00:05]} 46. Bd5 {[%emt 00:00:02] [%clk 00:00:08]} 1-0

[Site "Europe Echecs"]

[Event "Championnat d'Europe de Blitz"]
[Date "2024.12.09"]
[White "Pantsulaia, Levan"]
[Black "Kilic, Eray"]
[WhiteElo "2522"]
[BlackElo "2459"]
[Round "13.7"]
[Result "1-0"]
[TimeControl "180+2"]

1. Nf3 {[%emt 00:07:25] [%clk 00:03:03]} d5 {[%emt 00:00:03] [%clk 00:03:02]} 2.
c4 {[%clk 00:03:04]} d4 {[%emt 00:00:01] [%clk 00:03:03]} 3. b4 {[%clk
00:03:05]} g5 {[%clk 00:03:04]} 4. h3 {[%emt 00:00:06] [%clk 00:03:01]} Bg7
{[%emt 00:00:05] [%clk 00:03:01]} 5. d3 {[%emt 00:00:02] [%clk 00:03:02]} h6
{[%emt 00:00:01] [%clk 00:03:02]} 6. g3 {[%emt 00:00:01] [%clk 00:03:02]} e5
{[%emt 00:00:02] [%clk 00:03:02]} 7. Bg2 {[%clk 00:03:04]} Ne7 {[%emt 00:00:02]
[%clk 00:03:02]} 8. Nbd2 {[%emt 00:00:15] [%clk 00:02:50]} O-O {[%emt 00:00:03]
[%clk 00:03:01]} 9. O-O {[%emt 00:00:02] [%clk 00:02:51]} Ng6 {[%emt 00:00:11]
[%clk 00:02:52]} 10. a4 {[%emt 00:00:05] [%clk 00:02:48]} Be6 {[%emt 00:00:07]
[%clk 00:02:45]} 11. b5 {[%emt 00:00:09] [%clk 00:02:43]} Qc8 {[%emt 00:00:01]
[%clk 00:02:46]} 12. Ba3 {[%emt 00:00:02] [%clk 00:02:42]} Re8 {[%emt 00:00:03]
[%clk 00:02:45]} 13. Kh2 {[%emt 00:00:03] [%clk 00:02:41]} Nd7 {[%emt 00:00:06]
[%clk 00:02:41]} 14. Nb3 {[%emt 00:00:04] [%clk 00:02:40]} Rb8 {[%emt 00:00:13]
[%clk 00:02:30]} 15. Nfd2 {[%emt 00:00:07] [%clk 00:02:34]} b6 {[%emt 00:00:06]
[%clk 00:02:27]} 16. c5 {[%emt 00:00:15] [%clk 00:02:21]} Nf6 {[%emt 00:00:06]
[%clk 00:02:22]} 17. cxb6 {[%emt 00:00:05] [%clk 00:02:18]} axb6 {[%emt
00:00:02] [%clk 00:02:23]} 18. Rc1 {[%emt 00:00:42] [%clk 00:01:38]} Nd5 {[%emt
00:00:05] [%clk 00:02:20]} 19. Bb2 {[%emt 00:00:01] [%clk 00:01:39]} Ra8 {[%emt
00:00:37] [%clk 00:01:45]} 20. a5 {[%emt 00:00:05] [%clk 00:01:36]} Qd7 {[%emt
00:00:06] [%clk 00:01:41]} 21. axb6 {[%emt 00:00:36] [%clk 00:01:02]} cxb6
{[%emt 00:00:01] [%clk 00:01:42]} 22. Nc4 {[%emt 00:00:01] [%clk 00:01:03]} Rab8
{[%emt 00:00:04] [%clk 00:01:40]} 23. Nbd2 {[%emt 00:00:03] [%clk 00:01:02]} f5
{[%emt 00:00:13] [%clk 00:01:28]} 24. Qb3 {[%emt 00:00:10] [%clk 00:00:54]} h5
{[%emt 00:00:19] [%clk 00:01:11]} 25. Ba3 {[%emt 00:00:21] [%clk 00:00:36]} Red8
{[%emt 00:00:29] [%clk 00:00:44]} 26. Qb2 {[%emt 00:00:13] [%clk 00:00:24]} Nc3
{[%emt 00:00:15] [%clk 00:00:32]} 27. Bc6 {[%emt 00:00:04] [%clk 00:00:22]} Qf7
{[%emt 00:00:02] [%clk 00:00:31]} 28. Nd6 {[%emt 00:00:02] [%clk 00:00:23]} Qf6
{[%emt 00:00:02] [%clk 00:00:31]} 29. N2c4 {[%emt 00:00:03] [%clk 00:00:21]} g4
{[%emt 00:00:03] [%clk 00:00:30]} 30. hxg4 {[%emt 00:00:06] [%clk 00:00:18]}
hxg4 {[%emt 00:00:04] [%clk 00:00:28]} 31. Rxc3 {[%emt 00:00:05] [%clk
00:00:15]} dxc3 {[%emt 00:00:02] [%clk 00:00:28]} 32. Qxc3 {[%clk 00:00:16]} Qg5
{[%emt 00:00:04] [%clk 00:00:26]} 33. Kg2 {[%emt 00:00:08] [%clk 00:00:11]} Ne7
{[%emt 00:00:04] [%clk 00:00:23]} 34. Bc1 {[%emt 00:00:09] [%clk 00:00:04]} Qf6
{[%emt 00:00:07] [%clk 00:00:17]} 35. e4 {[%emt 00:00:03] [%clk 00:00:04]} f4
{[%emt 00:00:05] [%clk 00:00:14]} 36. Bb2 {[%emt 00:00:02] [%clk 00:00:04]} f3+
{[%emt 00:00:01] [%clk 00:00:15]} 37. Kg1 {[%clk 00:00:06]} Qh6 {[%emt 00:00:02]
[%clk 00:00:15]} 38. Nf5 {[%emt 00:00:03] [%clk 00:00:05]} Nxf5 {[%emt 00:00:02]
[%clk 00:00:14]} 39. exf5 {[%emt 00:00:02] [%clk 00:00:06]} Qh3 {[%clk
00:00:15]} 40. Ne3 {[%emt 00:00:02] [%clk 00:00:07]} Bf7 {[%emt 00:00:05] [%clk
00:00:12]} 41. Qb4 {[%emt 00:00:02] [%clk 00:00:07]} Bh6 {[%emt 00:00:05] [%clk
00:00:09]} 42. Qxg4+ {[%emt 00:00:01] [%clk 00:00:07]} Qxg4 {[%emt 00:00:02]
[%clk 00:00:10]} 43. Nxg4 {[%clk 00:00:09]} Bg7 {[%emt 00:00:02] [%clk
00:00:10]} 44. f6 {[%emt 00:00:01] [%clk 00:00:09]} Bf8 {[%emt 00:00:02] [%clk
00:00:10]} 45. Nxe5 {[%emt 00:00:01] [%clk 00:00:10]} Be6 {[%emt 00:00:03] [%clk
00:00:10]} 46. d4 {[%emt 00:00:02] [%clk 00:00:09]} Bd6 {[%emt 00:00:03] [%clk
00:00:09]} 47. Nxf3 {[%emt 00:00:03] [%clk 00:00:08]} Rf8 {[%emt 00:00:05] [%clk
00:00:06]} 48. Ng5 {[%emt 00:00:03] [%clk 00:00:08]} Bc4 {[%emt 00:00:02] [%clk
00:00:06]} 49. Rc1 {[%emt 00:00:03] [%clk 00:00:07]} Bb3 {[%emt 00:00:02] [%clk
00:00:05]} 50. d5 {[%emt 00:00:03] [%clk 00:00:07]} Bc5 {[%emt 00:00:02] [%clk
00:00:04]} 51. f7+ {[%emt 00:00:03] [%clk 00:00:07]} Rxf7 {[%emt 00:00:01] [%clk
00:00:05]} 52. Nxf7 {[%clk 00:00:07]} Kxf7 {[%emt 00:00:02] [%clk 00:00:07]} 53.
Rc3 {[%emt 00:00:01] [%clk 00:00:08]} Bd1 {[%emt 00:00:02] [%clk 00:00:07]} 54.
Rd3 {[%emt 00:00:05] [%clk 00:00:05]} Be2 {[%emt 00:00:02] [%clk 00:00:06]} 55.
Rd2 {[%emt 00:00:01] [%clk 00:00:06]} Bg4 {[%emt 00:00:04] [%clk 00:00:05]} 56.
d6 {[%clk 00:00:07]} Rd8 {[%emt 00:00:03] [%clk 00:00:04]} 57. d7 {[%emt
00:00:01] [%clk 00:00:07]} Kg6 {[%emt 00:00:03] [%clk 00:00:04]} 58. Kg2 {[%emt
00:00:01] [%clk 00:00:07]} Be6 {[%emt 00:00:01] [%clk 00:00:05]} 59. f4 {[%emt
00:00:05] [%clk 00:00:05]} Bb4 {[%emt 00:00:01] [%clk 00:00:06]} 60. Rd1 {[%emt
00:00:02] [%clk 00:00:05]} Bg4 {[%emt 00:00:01] [%clk 00:00:07]} 61. Bf3 {[%emt
00:00:03] [%clk 00:00:04]} Bxd7 {[%emt 00:00:02] [%clk 00:00:06]} 62. Be5 {[%emt
00:00:03] [%clk 00:00:04]} Bc5 {[%emt 00:00:06] [%clk 00:00:03]} 63. Rd5 {[%emt
00:00:01] [%clk 00:00:04]} Be7 {[%emt 00:00:02] [%clk 00:00:00]} 64. Bc7 {[%emt
00:00:02]} 1-0

[Site "Europe Echecs"]